fUSD/lending_fUSD_20250618
["ID","MTS","AMOUNT","RATE_DAILY","PERIOD"]
[366407008,1750234271367,-490.0,0.00016767,2]
[366407009,1750234271377,-688.32,0.00016767,2]
[366407010,1750234271387,-1210.3,0.00016767,2]
[366407011,1750234271396,-547.41,0.00016767,2]
[366407012,1750234271406,-490.0,0.00016767,2]
[366407013,1750234271416,-785.73,0.00016767,2]
[366407014,1750234271426,-1165.23,0.00016767,2]
[366407015,1750234271436,-1377.84,0.00016767,2]
[366407016,1750234271446,-490.0,0.00016767,2]
[366407017,1750234271455,-1790.2,0.00016767,2]
[366407018,1750234271465,-797.57,0.00016767,2]
[366407019,1750234271475,-490.0,0.00016767,2]
[366407020,1750234271484,-1079.33,0.00016767,2]
[366407021,1750234271494,-490.0,0.00016767,2]
[366407022,1750234271503,-490.0,0.00016767,2]
[366407023,1750234271513,-1205.73,0.00016767,2]
[366407024,1750234271524,-490.0,0.00016767,2]
[366407025,1750234271533,-490.0,0.00016767,2]
[366407026,1750234271543,-490.0,0.00016767,2]
[366407027,1750234271553,-153.04928,0.00016767,2]
[366407028,1750234271563,-153.04928,0.00016767,2]
[366407029,1750234271572,-3504.12,0.00016767,2]
[366407030,1750234271581,-490.0,0.00016767,2]
[366407031,1750234271592,-153.04928,0.00016767,2]
[366407032,1750234271601,-490.0,0.00016767,2]
[366407033,1750234271611,-1500.35,0.00016767,2]
[366407034,1750234271620,-490.0,0.00016767,2]
[366407035,1750234271631,-153.04928,0.00016767,2]
[366407036,1750234271640,-153.04928,0.00016767,2]
[366407037,1750234271651,-490.0,0.00016767,2]
[366407038,1750234271660,-153.049286,0.00016767,2]
[366407039,1750234271670,-667.87,0.00016767,2]
[366407040,1750234271679,-2416.72,0.00016767,2]
[366407041,1750234271690,-490.0,0.00016767,2]
[366407042,1750234271700,-490.0,0.00016767,2]
[366407043,1750234271709,-653.2,0.00016767,2]
[366407044,1750234271719,-1074.24,0.00016767,2]
[366407045,1750234271728,-490.0,0.00016767,2]
[366407046,1750234271738,-490.0,0.00016767,2]
[366407047,1750234271748,-1127.96,0.00016767,2]
[366407048,1750234271758,-490.0,0.00016767,2]
[366407049,1750234271767,-490.0,0.00016767,2]
[366407050,1750234271777,-1435.41,0.00016767,2]
[366407051,1750234271787,-490.0,0.00016767,2]
[366407052,1750234271797,-1439.14,0.00016767,2]
[366407053,1750234271807,-577.22635076,0.00016767,2]
[366407054,1750234271817,-490.0,0.00016767,2]
[366407055,1750234271826,-1064.92,0.00016767,2]
[366407056,1750234271836,-610.86,0.00016767,2]
[366407057,1750234271847,-1599.47,0.00016767,2]
[366407058,1750234271857,-490.0,0.00016767,2]
[366407059,1750234271867,-948.0,0.00016767,2]
[366407060,1750234271876,-2022.77,0.00016767,2]
[366407061,1750234271886,-612.2732131,0.00016767,2]
[366407062,1750234271895,-994.98,0.00016767,2]
[366407063,1750234271905,-584.43,0.00016767,2]
[366407064,1750234271915,-923.15,0.00016767,2]
[366407065,1750234271924,-490.0,0.00016767,2]
[366407066,1750234271933,-1259.4,0.00016767,2]
[366407067,1750234271943,-490.0,0.00016767,2]
[366407068,1750234271953,-581.74,0.00016767,2]
[366407069,1750234271963,-934.13,0.00016767,2]
[366407070,1750234271974,-490.0,0.00016767,2]
[366407071,1750234271984,-1330.77,0.00016767,2]
[366407072,1750234271994,-2053.82,0.00016767,2]
[366407073,1750234272004,-735.33,0.00016767,2]
[366407074,1750234272013,-1229.97,0.00016767,2]
[366407075,1750234272023,-490.0,0.00016767,2]
[366407076,1750234272032,-490.0,0.00016767,2]
[366407077,1750234272042,-1617.6,0.00016767,2]
[366407078,1750234272051,-2449.28,0.00016767,2]
[366407079,1750234272061,-1347.19,0.00016767,2]
[366407080,1750234272071,-2946.12,0.00016767,2]
[366407081,1750234272081,-668.74,0.00016767,2]
[366407082,1750234272090,-2691.97,0.00016767,2]
[366407083,1750234272100,-8627.5,0.00016767,2]
[366407084,1750234272110,-490.0,0.00016767,2]
[366407085,1750234272119,-1226.12,0.00016767,2]
[366407086,1750234272130,-2640.35,0.00016767,2]
[366407087,1750234272140,-1676.37,0.00016767,2]
[366407088,1750234272150,-1305.6,0.00016767,2]
[366407089,1750234272160,-2432.93,0.00016767,2]
[366407090,1750234272170,-490.0,0.00016767,2]
[366407091,1750234272179,-4894.13,0.00016767,2]
[366407092,1750234272189,-490.0,0.00016767,2]
[366407093,1750234272199,-151.0,0.00016767,2]
[366407094,1750234272208,-238.746422,0.00016767,2]
[366407095,1750234272218,-532.55,0.00016767,2]
[366407096,1750234272228,-21368.42,0.00016767,2]
[366407097,1750234272238,-618.45,0.00016767,2]
[366407098,1750234272248,-24970.95,0.00016767,2]
[366407099,1750234272258,-18395.49,0.00016767,2]
[366407100,1750234272271,-490.0,0.00016767,2]
[366407101,1750234272280,-490.0,0.00016767,2]
[366407102,1750234272290,-1866.72,0.00016767,2]
[366407103,1750234272299,-695.99,0.00016767,2]
[366407104,1750234272310,-490.0,0.00016767,2]
[366407105,1750234272319,-1316.53,0.00016767,2]
[366407106,1750234272329,-490.0,0.00016767,2]
[366407107,1750234272341,-1252.53,0.00016767,2]
[366407108,1750234272351,-2062.39,0.00016767,2]
[366407109,1750234272362,-796.41,0.00016767,2]
[366407110,1750234272372,-913.62,0.00016767,2]
[366407111,1750234272381,-8176.31,0.00016767,2]
[366407112,1750234272391,-490.0,0.00016767,2]
[366407113,1750234272401,-501.21,0.00016767,2]
[366407114,1750234272410,-2397.79,0.00016767,2]
[366407115,1750234272420,-490.0,0.00016767,2]
[366407116,1750234272429,-502.20440282,0.00016767,2]
[366407117,1750234272439,-490.0,0.00016767,2]
[366407118,1750234272449,-4581.46,0.00016767,2]
[366407119,1750234272458,-1623.36,0.00016767,2]
[366407120,1750234272468,-3506.03,0.00016767,2]
[366407121,1750234272478,-4659.1,0.00016767,2]
[366407122,1750234272487,-1741.24,0.00016767,2]
[366407123,1750234272496,-348.64091862,0.00016767,2]
[366407124,1750234272505,-490.0,0.00016767,2]
[366407125,1750234272515,-490.0,0.00016767,2]
[366407126,1750234272525,-490.0,0.00016767,2]
[366407127,1750234272536,-1903.14,0.00016767,2]
[366407128,1750234272545,-1998.78,0.00016767,2]
[366407129,1750234272555,-1405.34,0.00016767,2]
[366407130,1750234272565,-2377.87,0.00016767,2]
[366407131,1750234272574,-490.0,0.00016767,2]
[366407132,1750234272584,-6249.52,0.00016767,2]
[366407133,1750234272595,-490.0,0.00016767,2]
[366407134,1750234272605,-490.0,0.00016767,2]
[366407135,1750234272615,-490.0,0.00016767,2]
[366407136,1750234272625,-569.01,0.00016767,2]
[366407137,1750234272634,-944.9,0.00016767,2]
[366407138,1750234272644,-490.0,0.00016767,2]
[366407139,1750234272654,-490.0,0.00016767,2]
[366407140,1750234272664,-1692.65,0.00016767,2]
[366407141,1750234272674,-15533.32,0.00016767,2]
[366407142,1750234272684,-490.0,0.00016767,2]
[366407143,1750234272693,-490.0,0.00016767,2]
[366407144,1750234272703,-509.93,0.00016767,2]
[366407145,1750234272713,-932.9,0.00016767,2]
[366407146,1750234272723,-3172.28,0.00016767,2]
[366407147,1750234272732,-1804.27,0.00016767,2]
[366407148,1750234272741,-1337.85,0.00016767,2]
[366407149,1750234272751,-1332.52,0.00016767,2]
[366407150,1750234272761,-298.17435014,0.00016767,2]
[366407151,1750234272771,-1336.3,0.00016767,2]
[366407152,1750234272781,-2853.57,0.00016767,2]
[366407153,1750234272791,-1850.55,0.00016767,2]
[366407154,1750234272801,-490.0,0.00016767,2]
[366407155,1750234272811,-490.0,0.00016767,2]
[366407156,1750234272820,-845.71,0.00016767,2]
[366407157,1750234272830,-490.0,0.00016767,2]
[366407158,1750234272841,-1988.77,0.00016767,2]
[366407159,1750234272850,-3685.42,0.00016767,2]
[366407160,1750234272860,-517.42,0.00016767,2]
[366407161,1750234272869,-582.5,0.00016767,2]
[366407162,1750234272879,-494.56,0.00016767,2]
[366407163,1750234272888,-490.0,0.00016767,2]
[366407164,1750234272898,-3924.46,0.00016767,2]
[366407165,1750234272907,-959.76,0.00016767,2]
[366407166,1750234272917,-1611.5,0.00016767,2]
[366407167,1750234272927,-490.0,0.00016767,2]
[366407168,1750234272938,-686.73,0.00016767,2]
[366407169,1750234272947,-1006.01,0.00016767,2]
[366407170,1750234272956,-6713.86,0.00016767,2]
[366407171,1750234272966,-8789.62,0.00016767,2]
[366407172,1750234272975,-691.36,0.00016767,2]
[366407173,1750234272985,-1288.05,0.00016767,2]
[366407174,1750234272993,-2002.11,0.00016767,2]
[366407175,1750234273003,-2483.72,0.00016767,2]
[366407176,1750234273012,-495.41079905,0.00016767,2]
[366407177,1750234273022,-2649.86,0.00016767,2]
[366407178,1750234273031,-1193.27,0.00016767,2]
[366407179,1750234273042,-1950.9,0.00016767,2]
[366407180,1750234273052,-563.86,0.00016767,2]
[366407181,1750234273062,-490.0,0.00016767,2]
[366407182,1750234273071,-1350.94,0.00016767,2]
[366407183,1750234273080,-490.0,0.00016767,2]
[366407184,1750234273090,-499.28400562,0.00016767,2]
[366407185,1750234273100,-490.0,0.00016767,2]
[366407186,1750234273110,-3547.75,0.00016767,2]
[366407187,1750234273120,-4782.51,0.00016767,2]
[366407188,1750234273130,-490.0,0.00016767,2]
[366407189,1750234273139,-490.0,0.00016767,2]
[366407190,1750234273150,-642.09,0.00016767,2]
[366407191,1750234273159,-490.0,0.00016767,2]
[366407192,1750234273169,-2041.7,0.00016767,2]
[366407193,1750234273179,-355.01971392,0.00016767,2]
[366407194,1750234273188,-6696.19,0.00016767,2]
[366407195,1750234273197,-490.0,0.00016767,2]
[366407196,1750234273207,-1880.43,0.00016767,2]
[366407197,1750234273216,-490.0,0.00016767,2]
[366407198,1750234273225,-2875.7,0.00016767,2]
[366407199,1750234273235,-750.98,0.00016767,2]
[366407200,1750234273244,-775.24,0.00016767,2]
[366407201,1750234273253,-1972.87,0.00016767,2]
[366407202,1750234273263,-8494.51,0.00016767,2]
[366407203,1750234273273,-2681.46,0.00016767,2]
[366407204,1750234273283,-4677.88,0.00016767,2]
[366407205,1750234273293,-6821.03,0.00016767,2]
[366407206,1750234273302,-490.0,0.00016767,2]
[366407207,1750234273312,-1104.94,0.00016767,2]
[366407208,1750234273322,-3668.3,0.00016767,2]
[366407209,1750234273332,-490.0,0.00016767,2]
[366407210,1750234273343,-1269.38,0.00016767,2]
[366407211,1750234273352,-1439.2,0.00016767,2]
[366407212,1750234273362,-2481.27,0.00016767,2]
[366407213,1750234273372,-829.6,0.00016767,2]
[366407214,1750234273382,-997.96,0.00016767,2]
[366407215,1750234273391,-9278.6,0.00016767,2]
[366407216,1750234273401,-2367.18,0.00016767,2]
[366407217,1750234273411,-2475.43,0.00016767,2]
[366407218,1750234273421,-2422.37,0.00016767,2]
[366407219,1750234273431,-490.0,0.00016767,2]
[366407220,1750234273440,-1510.19,0.00016767,2]
[366407221,1750234273450,-1244.73,0.00016767,2]
[366407222,1750234273459,-906.47,0.00016767,2]
[366407223,1750234273471,-490.0,0.00016767,2]
[366407224,1750234273480,-799.64,0.00016767,2]
[366407225,1750234273490,-1576.78,0.00016767,2]
[366407226,1750234273500,-467.32361705,0.00016767,2]
[366407227,1750234273509,-1255.38,0.00016767,2]
[366407228,1750234273519,-2728.86,0.00016767,2]
[366407229,1750234273529,-3264.06,0.00016767,2]
[366407230,1750234273538,-720.09,0.00016767,2]
[366407231,1750234273548,-490.0,0.00016767,2]
[366407232,1750234273557,-490.0,0.00016767,2]
[366407233,1750234273567,-1948.47,0.00016767,2]
[366407234,1750234273577,-1411.73,0.00016767,2]
[366407235,1750234273586,-3505.74,0.00016767,2]
[366407236,1750234273597,-490.0,0.00016767,2]
[366407237,1750234273607,-490.0,0.00016767,2]
[366407238,1750234273617,-2040.33,0.00016767,2]
[366407239,1750234273626,-700.58,0.00016767,2]
[366407240,1750234273635,-490.0,0.00016767,2]
[366407241,1750234273645,-151.0,0.00016767,2]
[366407242,1750234273654,-490.0,0.00016767,2]
[366407243,1750234273664,-151.0,0.00016767,2]
[366407244,1750234273674,-151.0,0.00016767,2]
[366407245,1750234273683,-5782.65,0.00016767,2]
[366407246,1750234273693,-490.0,0.00016767,2]
[366407247,1750234273703,-685.94,0.00016767,2]
[366407248,1750234273713,-189.462749,0.00016767,2]
[366407249,1750234273913,-490.0,0.00016767,2]
[366407250,1750234273939,-490.0,0.00016767,2]
[366407251,1750234273950,-782.02,0.00016767,2]
[366407252,1750234273959,-3095.17,0.00016767,2]
[366407253,1750234273969,-587.71,0.00016767,2]
[366407254,1750234273979,-683.51,0.00016767,2]
[366407255,1750234273988,-1431.28,0.00016767,2]
[366407256,1750234273998,-3006.36,0.00016767,2]
[366407257,1750234274007,-490.0,0.00016767,2]
[366407258,1750234274017,-1151.27,0.00016767,2]
[366407259,1750234274027,-1194.57,0.00016767,2]
[366407260,1750234274036,-241.622317,0.00016767,2]
[366407261,1750234274046,-13289.93,0.00016767,2]
[366407262,1750234274055,-241.622317,0.00016767,2]
[366407263,1750234274065,-241.622317,0.00016767,2]
[366407264,1750234274074,-633.71,0.00016767,2]
[366407265,1750234274084,-490.0,0.00016767,2]
[366407266,1750234274094,-461.12173743,0.00016767,2]
[366407267,1750234274105,-490.0,0.00016767,2]
[366407268,1750234274114,-490.0,0.00016767,2]
[366407269,1750234274124,-3532.09,0.00016767,2]
[366407270,1750234274134,-490.0,0.00016767,2]
[366407271,1750234274143,-490.0,0.00016767,2]
[366407272,1750234274153,-1164.03,0.00016767,2]
[366407273,1750234274162,-241.622317,0.00016767,2]
[366407274,1750234274172,-5644.14,0.00016767,2]
[366407275,1750234274182,-241.622317,0.00016767,2]
[366407276,1750234274192,-241.622315,0.00016767,2]
[366407277,1750234274201,-431.33537977,0.00016767,2]
[366407278,1750234274211,-490.0,0.00016767,2]
[366407279,1750234274221,-2639.26,0.00016767,2]
[366407280,1750234274231,-2054.07,0.00016767,2]
[366407281,1750234274240,-8173.15,0.00016767,2]
[366407282,1750234274250,-724.72,0.00016767,2]
[366407283,1750234274260,-4076.85,0.00016767,2]
[366407284,1750234274271,-490.0,0.00016767,2]
[366407285,1750234274283,-490.0,0.00016767,2]
[366407286,1750234274293,-4248.64,0.00016767,2]
[366407287,1750234274303,-953.91,0.00016767,2]
[366407288,1750234274314,-490.0,0.00016767,2]
[366407289,1750234274323,-735.22,0.00016767,2]
[366407290,1750234274333,-1296.13,0.00016767,2]
[366407291,1750234274343,-490.0,0.00016767,2]
[366407292,1750234274355,-2420.37,0.00016767,2]
[366407293,1750234274365,-490.0,0.00016767,2]
[366407294,1750234274375,-879.79,0.00016767,2]
[366407295,1750234274385,-490.0,0.00016767,2]
[366407296,1750234274395,-911.01,0.00016767,2]
[366407297,1750234274404,-4191.13,0.00016767,2]
[366407298,1750234274414,-1078.89,0.00016767,2]
[366407299,1750234274423,-490.0,0.00016767,2]
[366407300,1750234274433,-3993.56,0.00016767,2]
[366407301,1750234274444,-494.04793642,0.00016767,2]
[366407302,1750234274453,-626.64,0.00016767,2]
[366407303,1750234274463,-1454.48,0.00016767,2]
[366407304,1750234274472,-490.0,0.00016767,2]
[366407305,1750234274482,-490.0,0.00016767,2]
[366407306,1750234274491,-490.0,0.00016767,2]
[366407307,1750234274501,-2491.12,0.00016767,2]
[366407308,1750234274510,-1223.89,0.00016767,2]
[366407309,1750234274520,-11221.64,0.00016767,2]
[366407310,1750234274530,-490.0,0.00016767,2]
[366407311,1750234274539,-490.0,0.00016767,2]
[366407312,1750234274549,-159.721463,0.00016767,2]
[366407313,1750234274559,-159.721463,0.00016767,2]
[366407314,1750234274568,-1386.94,0.00016767,2]
[366407315,1750234274578,-601.24,0.00016767,2]
[366407316,1750234274587,-602.72,0.00016767,2]
[366407317,1750234274598,-8145.66,0.00016767,2]
[366407318,1750234274607,-613.1,0.00016767,2]
[366407319,1750234274617,-582.14,0.00016767,2]
[366407320,1750234274626,-159.721463,0.00016767,2]
[366407321,1750234274636,-159.721467,0.00016767,2]
[366407322,1750234274646,-4945.14,0.00016767,2]
[366407323,1750234274656,-1297.07,0.00016767,2]
[366407324,1750234274665,-490.0,0.00016767,2]
[366407325,1750234274675,-1411.41,0.00016767,2]
[366407326,1750234274684,-490.0,0.00016767,2]
[366407327,1750234274694,-10412.56,0.00016767,2]
[366407328,1750234274704,-652.53,0.00016767,2]
[366407329,1750234274715,-490.0,0.00016767,2]
[366407330,1750234274724,-724.9,0.00016767,2]
[366407331,1750234274735,-807.48,0.00016767,2]
[366407332,1750234274745,-644.3,0.00016767,2]
[366407333,1750234274755,-151.0,0.00016767,2]
[366407334,1750234274765,-490.0,0.00016767,2]
[366407335,1750234274775,-151.0,0.00016767,2]
[366407336,1750234274785,-2133.19,0.00016767,2]
[366407337,1750234274795,-5778.23,0.00016767,2]
[366407338,1750234274806,-1982.75,0.00016767,2]
[366407339,1750234274816,-722.77,0.00016767,2]
[366407340,1750234274826,-575.96,0.00016767,2]
[366407341,1750234274835,-490.0,0.00016767,2]
[366407342,1750234274846,-201.207702,0.00016767,2]
[366407343,1750234274855,-599.77,0.00016767,2]
[366407344,1750234274865,-1181.09,0.00016767,2]
[366407345,1750234274876,-1304.25,0.00016767,2]
[366407346,1750234274885,-2517.5,0.00016767,2]
[366407347,1750234274895,-490.0,0.00016767,2]
[366407348,1750234274905,-490.0,0.00016767,2]
[366407349,1750234274915,-1474.25,0.00016767,2]
[366407350,1750234274925,-21830.55,0.00016767,2]
[366407351,1750234274936,-2818.65,0.00016767,2]
[366407352,1750234274945,-1558.96,0.00016767,2]
[366407353,1750234274956,-490.0,0.00016767,2]
[366407354,1750234274966,-490.0,0.00016767,2]
[366407355,1750234274976,-490.0,0.00016767,2]
[366407356,1750234274986,-1370.07,0.00016767,2]
[366407357,1750234274996,-490.0,0.00016767,2]
[366407358,1750234275005,-829.02,0.00016767,2]
[366407359,1750234275015,-625.670203,0.00016767,2]
[366407360,1750234275026,-625.670203,0.00016767,2]
[366407361,1750234275036,-965.28,0.00016767,2]
[366407362,1750234275046,-490.0,0.00016767,2]
[366407363,1750234275056,-1810.48,0.00016767,2]
[366407364,1750234275066,-625.670203,0.00016767,2]
[366407365,1750234275075,-625.670202,0.00016767,2]
[366407366,1750234275085,-490.0,0.00016767,2]
[366407367,1750234275095,-151.0,0.00016767,2]
[366407368,1750234275105,-151.0,0.00016767,2]
[366407369,1750234275115,-254.270484,0.00016767,2]
[366407370,1750234275125,-2102.52,0.00016767,2]
[366407371,1750234275135,-513.17574363,0.00016767,2]
[366407372,1750234275144,-5086.49,0.00016767,2]
[366407373,1750234275154,-490.0,0.00016767,2]
[366407374,1750234275163,-3401.94,0.00016767,2]
[366407375,1750234275173,-1823.73,0.00016767,2]
[366407376,1750234275183,-354.86,0.00016767,2]
[366407377,1750234275193,-1215.18977861,0.00016776,2]
[366407378,1750234275202,-151.45770565,0.00016776,2]
[366407379,1750234275212,-151.0,0.00016777,2]
[366407380,1750234275222,-500.0,0.00016795,2]
[366407381,1750234275232,-200.0,0.00016795,2]
[366407382,1750234275242,-500.0,0.00016796,2]
[366407383,1750234275252,-200.0,0.00016796,2]
[366407384,1750234275262,-568.4734369,0.000168,2]
[366407385,1750234275276,-168.0,0.00016805,2]
[366407386,1750234275286,-218.0,0.00016825,2]
[366407387,1750234275296,-151.0,0.0001683,2]
[366407388,1750234275306,-13282.68675954,0.00016831,2]
[366407389,1750234275316,-1215.18977861,0.00016831,2]
[366407390,1750234275326,-151.45770565,0.00016831,2]
[366407391,1750234275335,-155.17344834,0.00016849,2]
[366407392,1750234275347,-2426.1847692,0.0001688,2]
[366407393,1750234275357,-151.0,0.00016883,2]
[366407394,1750234275367,-189.10052464,0.00016886,2]
[366407395,1750234275377,-1000.0,0.000169,2]
[366407396,1750234275387,-1000.0,0.000169,2]
[366407397,1750234275397,-1000.0,0.000169,2]
[366407398,1750234275407,-1000.0,0.000169,2]
[366407399,1750234275416,-1000.0,0.000169,2]
[366407400,1750234275426,-1000.0,0.000169,2]
[366407401,1750234275436,-1000.0,0.000169,2]
[366407402,1750234275446,-1000.0,0.000169,2]
[366407403,1750234275456,-1000.0,0.000169,2]
[366407404,1750234275466,-1000.0,0.000169,2]
[366407405,1750234275476,-376.0,0.000169,2]
[366407406,1750234275486,-237.0,0.000169,2]
[366407407,1750234275497,-13282.6867595,0.00016904,2]
[366407408,1750234275506,-151.0,0.00016924,2]
[366407409,1750234275516,-4172.5688432,0.00016924,2]
[366407410,1750234275526,-1524.7560775,0.00016924,2]
[366407411,1750234275536,-1910.8848012,0.00016924,2]
[366407412,1750234275546,-274.4820803,0.00016924,2]
[366407413,1750234275555,-69223.3019468,0.00016924,2]
[366407414,1750234275565,-402.4532368,0.00016924,2]
[366407415,1750234275575,-31759.27340935,0.00016924,2]
[366407416,1750234275584,-151.0,0.0001693,2]
[366407417,1750234275595,-2203.92,0.0001693,2]
[366407418,1750234275605,-2203.92,0.0001693,2]
[366407419,1750234275615,-2203.92,0.0001693,2]
[366407420,1750234275625,-2203.92,0.0001693,2]
[366407421,1750234275635,-4123.36,0.0001693,2]
[366407422,1750234275645,-4123.36,0.0001693,2]
[366407423,1750234275655,-4123.36,0.0001693,2]
[366407424,1750234275666,-4123.36,0.0001693,2]
[366407425,1750234275676,-4123.36,0.0001693,2]
[366407426,1750234275685,-4123.36,0.0001693,2]
[366407427,1750234275696,-4123.36,0.0001693,2]
[366407428,1750234275706,-4123.40079498,0.0001693,2]
[366407429,1750234275716,-300.0,0.0001693,2]
[366407430,1750234275726,-300.0,0.0001693,2]
[366407431,1750234275736,-300.0,0.0001693,2]
[366407432,1750234275746,-490.0,0.00016931,2]
[366407433,1750234275756,-249.136401,0.00016931,2]
[366407434,1750234275766,-490.0,0.00016931,2]
[366407435,1750234275776,-2567.760265,0.00016931,2]
[366407436,1750234275785,-490.0,0.00016931,2]
[366407437,1750234275795,-490.0,0.00016931,2]
[366407438,1750234275805,-490.0,0.00016931,2]
[366407439,1750234275815,-490.0,0.00016931,2]
[366407440,1750234275825,-490.0,0.00016931,2]
[366407441,1750234275835,-490.0,0.00016931,2]
[366407442,1750234275846,-179.77602948,0.00016931,2]
[366407443,1750234275856,-761.39,0.00016931,2]
[366407444,1750234275866,-875.74,0.00016931,2]
[366407445,1750234275876,-1280.16,0.00016931,2]
[366407446,1750234275886,-151.0,0.00016931,2]
[366407447,1750234275896,-490.0,0.00016931,2]
[366407448,1750234275906,-490.0,0.00016931,2]
[366407449,1750234275916,-152.831097,0.00016931,2]
[366407450,1750234275927,-490.0,0.00016931,2]
[366407451,1750234275937,-490.0,0.00016931,2]
[366407452,1750234275948,-1063.25,0.00016931,2]
[366407453,1750234275958,-490.0,0.00016931,2]
[366407454,1750234275968,-490.0,0.00016931,2]
[366407455,1750234275978,-898.99,0.00016931,2]
[366407456,1750234275988,-490.0,0.00016931,2]
[366407457,1750234275999,-490.0,0.00016931,2]
[366407458,1750234276009,-150.617492,0.00016931,2]
[366407459,1750234276019,-490.0,0.00016931,2]
[366407460,1750234276028,-490.0,0.00016931,2]
[366407461,1750234276038,-490.0,0.00016931,2]
[366407462,1750234276048,-583.97,0.00016931,2]
[366407463,1750234276057,-490.0,0.00016931,2]
[366407464,1750234276067,-1305.54,0.00016931,2]
[366407465,1750234276077,-781.49,0.00016931,2]
[366407466,1750234276087,-490.0,0.00016931,2]
[366407467,1750234276098,-490.0,0.00016931,2]
[366407468,1750234276108,-782.65,0.00016931,2]
[366407469,1750234276118,-561.73,0.00016931,2]
[366407470,1750234276128,-490.0,0.00016931,2]
[366407471,1750234276139,-671.46,0.00016931,2]
[366407472,1750234276148,-490.0,0.00016931,2]
[366407473,1750234276159,-490.0,0.00016931,2]
[366407474,1750234276169,-1400.31,0.00016931,2]
[366407475,1750234276179,-588.29,0.00016931,2]
[366407476,1750234276189,-490.0,0.00016931,2]
[366407477,1750234276199,-1063.26,0.00016931,2]
[366407478,1750234276209,-675.62,0.00016931,2]
[366407479,1750234276219,-490.0,0.00016931,2]
[366407480,1750234276229,-705.74,0.00016931,2]
[366407481,1750234276238,-490.0,0.00016931,2]
[366407482,1750234276248,-490.0,0.00016931,2]
[366407483,1750234276258,-490.0,0.00016931,2]
[366407484,1750234276270,-1561.0,0.00016931,2]
[366407485,1750234276280,-490.0,0.00016931,2]
[366407486,1750234276290,-490.0,0.00016931,2]
[366407487,1750234276300,-490.0,0.00016931,2]
[366407488,1750234276310,-490.0,0.00016931,2]
[366407489,1750234276320,-207.56373985,0.00016931,2]
[366407490,1750234276330,-490.0,0.00016931,2]
[366407491,1750234276340,-490.0,0.00016931,2]
[366407492,1750234276351,-495.84,0.00016931,2]
[366407493,1750234276362,-610.71,0.00016931,2]
[366407494,1750234276371,-697.12,0.00016931,2]
[366407495,1750234276381,-490.0,0.00016931,2]
[366407496,1750234276391,-490.0,0.00016931,2]
[366407497,1750234276401,-536.79625191,0.00016931,2]
[366407498,1750234276411,-490.0,0.00016931,2]
[366407499,1750234276421,-490.0,0.00016931,2]
[366407500,1750234276430,-490.0,0.00016931,2]
[366407501,1750234276440,-490.0,0.00016931,2]
[366407502,1750234276450,-490.0,0.00016931,2]
[366407503,1750234276459,-490.0,0.00016931,2]
[366407504,1750234276541,-490.0,0.00016931,2]
[366407505,1750234276550,-490.0,0.00016931,2]
[366407506,1750234276560,-543.24,0.00016931,2]
[366407507,1750234276570,-490.0,0.00016931,2]